[Event "Titled Tuesday Blitz July 4 Early 2023"]
[White "Bazilius, Augustinas"]
[Black "Matinian, Nikita"]
[WhiteFideId "12832251"]
[BlackFideId "24129100"]
[WhiteElo "2417"]
[BlackElo "2706"]
[Result "0-1"]
[Round "1"]
[TimeControl "180+2"]
[Date "2023.07.04"]
[WhiteClock "0:00:00"]
[BlackClock "0:00:39"]
[Board "96"]

1. d4 {[%clk 0:03:00]}  Nf6 {[%clk 0:02:41]} 2. c4 {[%clk 0:03:00]}  e6 {[%clk 0:02:40]} 3. Nf3 {[%clk 0:02:59]}  Bb4+ {[%clk 0:02:40]} 4. Bd2 {[%clk 0:02:59]}  a5 {[%clk 0:02:40]} 5. g3 {[%clk 0:02:58]}  b6 {[%clk 0:02:40]} 6. Bg2 {[%clk 0:02:58]}  Bb7 {[%clk 0:02:40]} 7. O-O {[%clk 0:02:56]}  O-O {[%clk 0:02:40]} 8. Nc3 {[%clk 0:02:48]}  d6 {[%clk 0:02:19]} 9. Qc2 {[%clk 0:02:44]}  Bxc3 {[%clk 0:02:18]} 10. Bxc3 {[%clk 0:02:43]}  Be4 {[%clk 0:02:19]} 11. Qd2 {[%clk 0:02:35]}  Nbd7 {[%clk 0:02:17]} 12. Rfd1 {[%clk 0:02:20]}  Qe7 {[%clk 0:02:08]} 13. b4 {[%clk 0:01:59]}  axb4 {[%clk 0:02:06]} 14. Bxb4 {[%clk 0:02:00]}  e5 {[%clk 0:01:47]} 15. dxe5 {[%clk 0:01:50]}  Nxe5 {[%clk 0:01:45]} 16. Nxe5 {[%clk 0:01:49]}  Bxg2 {[%clk 0:01:36]} 17. Nf3 {[%clk 0:01:26]}  Bxf3 {[%clk 0:01:19]} 18. exf3 {[%clk 0:01:27]}  Qd7 {[%clk 0:01:20]} 19. Bc3 {[%clk 0:01:18]}  Qf5 {[%clk 0:01:16]} 20. Kg2 {[%clk 0:01:08]}  Nd7 {[%clk 0:01:12]} 21. Qd4 {[%clk 0:01:01]}  f6 {[%clk 0:01:09]} 22. Qd5+ {[%clk 0:00:54]}  Qxd5 {[%clk 0:01:08]} 23. cxd5 {[%clk 0:00:55]}  Ra4 {[%clk 0:01:02]} 24. Re1 {[%clk 0:00:49]}  Kf7 {[%clk 0:01:01]} 25. Re2 {[%clk 0:00:44]}  Re8 {[%clk 0:00:59]} 26. Rc2 {[%clk 0:00:39]}  Nc5 {[%clk 0:00:57]} 27. Bd2 {[%clk 0:00:37]}  Rd4 {[%clk 0:00:53]} 28. Be3 {[%clk 0:00:32]}  Rxd5 {[%clk 0:00:53]} 29. a4 {[%clk 0:00:32]}  Ra8 {[%clk 0:00:53]} 30. Ra3 {[%clk 0:00:16]}  Ke6 {[%clk 0:00:38]} 31. Bxc5 {[%clk 0:00:11]}  Rxc5 {[%clk 0:00:36]} 32. Re2+ {[%clk 0:00:08]}  Kd7 {[%clk 0:00:36]} 33. Rae3 {[%clk 0:00:08]}  Re5 {[%clk 0:00:36]} 34. Rxe5 {[%clk 0:00:08]}  fxe5 {[%clk 0:00:37]} 35. Ra2 {[%clk 0:00:08]}  b5 {[%clk 0:00:37]} 36. a5 {[%clk 0:00:08]}  b4 {[%clk 0:00:37]} 37. Ra4 {[%clk 0:00:03]}  c5 {[%clk 0:00:38]} 38. a6 {[%clk 0:00:02]}  Kc6 {[%clk 0:00:38]} 39. a7 {[%clk 0:00:03]}  Kb6 {[%clk 0:00:39]} 40. Ra1 {[%clk 0:00:02]}  Rxa7 {[%clk 0:00:39]} 41. f4 {[%clk 0:00:00]}  Rxa1 {[%clk 0:00:39]} 0-1


[Site "https://www.chess.com"]

[Event "Titled Tuesday Blitz July 4 Early 2023"]
[White "Panesar Vedant"]
[Black "Molenda, Marcin"]
[WhiteFideId "35033018"]
[BlackFideId "1173065"]
[WhiteElo "2706"]
[BlackElo "2417"]
[Result "1-0"]
[Round "1"]
[TimeControl "180+2"]
[Date "2023.07.04"]
[WhiteClock "0:00:13"]
[BlackClock "0:00:00"]
[Board "97"]

1. e3 {[%clk 0:02:59]}  g6 {[%clk 0:02:57]} 2. d4 {[%clk 0:02:55]}  Bg7 {[%clk 0:02:53]} 3. Nf3 {[%clk 0:02:55]}  Nf6 {[%clk 0:02:53]} 4. b3 {[%clk 0:02:56]}  O-O {[%clk 0:02:54]} 5. Bb2 {[%clk 0:02:56]}  b6 {[%clk 0:02:54]} 6. Nbd2 {[%clk 0:02:56]}  Bb7 {[%clk 0:02:55]} 7. Bd3 {[%clk 0:02:55]}  c5 {[%clk 0:02:50]} 8. O-O {[%clk 0:02:55]}  d6 {[%clk 0:02:50]} 9. c4 {[%clk 0:02:55]}  Nbd7 {[%clk 0:02:44]} 10. Qe2 {[%clk 0:02:48]}  Qc7 {[%clk 0:02:38]} 11. Rfe1 {[%clk 0:02:45]}  e5 {[%clk 0:02:37]} 12. Bc2 {[%clk 0:02:24]}  e4 {[%clk 0:02:34]} 13. Ng5 {[%clk 0:02:24]}  cxd4 {[%clk 0:02:25]} 14. Ngxe4 {[%clk 0:02:05]}  dxe3 {[%clk 0:01:51]} 15. fxe3 {[%clk 0:01:46]}  Rfe8 {[%clk 0:01:45]} 16. Nxf6+ {[%clk 0:01:45]}  Nxf6 {[%clk 0:01:45]} 17. Rf1 {[%clk 0:01:42]}  Ng4 {[%clk 0:01:31]} 18. Bxg7 {[%clk 0:01:14]}  Nxe3 {[%clk 0:01:31]} 19. Ne4 {[%clk 0:00:52]}  Bxe4 {[%clk 0:01:16]} 20. Qxe3 {[%clk 0:00:46]}  Bxc2 {[%clk 0:01:14]} 21. Qc3 {[%clk 0:00:46]}  Re2 {[%clk 0:01:01]} 22. Rae1 {[%clk 0:00:31]}  Rae8 {[%clk 0:00:59]} 23. Rxe2 {[%clk 0:00:29]}  Rxe2 {[%clk 0:01:00]} 24. Bh6 {[%clk 0:00:29]}  Qc5+ {[%clk 0:00:50]} 25. Kh1 {[%clk 0:00:27]}  Qe5 {[%clk 0:00:50]} 26. Qf3 {[%clk 0:00:24]}  f5 {[%clk 0:00:21]} 27. Qa8+ {[%clk 0:00:19]}  Qe8 {[%clk 0:00:21]} 28. Qd5+ {[%clk 0:00:19]}  Re6 {[%clk 0:00:11]} 29. Re1 {[%clk 0:00:17]}  Be4 {[%clk 0:00:11]} 30. Qd4 {[%clk 0:00:17]}  Qe7 {[%clk 0:00:09]} 31. Kg1 {[%clk 0:00:17]}  Qh4 {[%clk 0:00:08]} 32. Bd2 {[%clk 0:00:13]}  Qg4 {[%clk 0:00:05]} 33. Qf2 {[%clk 0:00:13]}  h5 {[%clk 0:00:03]} 34. h3 {[%clk 0:00:13]}  Qxg2+ {[%clk 0:00:00]} 35. Qxg2 {[%clk 0:00:13]} 1-0


[Site "https://www.chess.com"]

[Event "Titled Tuesday Blitz July 4 Early 2023"]
[White "Vivas Zamora, Fabian Ernesto"]
[Black "Papasimakopoulos, Alexandros"]
[WhiteFideId "3902480"]
[BlackFideId "4244125"]
[WhiteElo "2416"]
[BlackElo "2705"]
[Result "0-1"]
[Round "1"]
[TimeControl "180+2"]
[Date "2023.07.04"]
[WhiteClock "0:00:02"]
[BlackClock "0:01:16"]
[Board "98"]

1. e4 {[%clk 0:02:55]}  e6 {[%clk 0:02:59]} 2. d4 {[%clk 0:02:54]}  d5 {[%clk 0:02:59]} 3. Nd2 {[%clk 0:02:54]}  Nf6 {[%clk 0:02:58]} 4. e5 {[%clk 0:02:54]}  Nfd7 {[%clk 0:02:59]} 5. Ngf3 {[%clk 0:02:54]}  c5 {[%clk 0:02:59]} 6. c3 {[%clk 0:02:55]}  b6 {[%clk 0:02:56]} 7. a4 {[%clk 0:02:55]}  Ba6 {[%clk 0:02:51]} 8. Bb5 {[%clk 0:02:54]}  Bxb5 {[%clk 0:02:44]} 9. axb5 {[%clk 0:02:55]}  Be7 {[%clk 0:02:38]} 10. O-O {[%clk 0:02:52]}  O-O {[%clk 0:02:37]} 11. Re1 {[%clk 0:02:47]}  Re8 {[%clk 0:02:37]} 12. c4 {[%clk 0:02:46]}  Nf8 {[%clk 0:02:34]} 13. Qb3 {[%clk 0:02:31]}  cxd4 {[%clk 0:02:31]} 14. cxd5 {[%clk 0:02:27]}  exd5 {[%clk 0:02:14]} 15. Nxd4 {[%clk 0:02:26]}  Bc5 {[%clk 0:02:13]} 16. N2f3 {[%clk 0:02:24]}  Ne6 {[%clk 0:02:13]} 17. Be3 {[%clk 0:02:17]}  Bxd4 {[%clk 0:02:08]} 18. Bxd4 {[%clk 0:02:02]}  h6 {[%clk 0:01:59]} 19. Red1 {[%clk 0:01:56]}  Re7 {[%clk 0:01:52]} 20. Be3 {[%clk 0:01:37]}  Rd7 {[%clk 0:01:51]} 21. Ra4 {[%clk 0:01:20]}  d4 {[%clk 0:01:33]} 22. Nxd4 {[%clk 0:00:52]}  Nc5 {[%clk 0:01:32]} 23. Qa2 {[%clk 0:00:44]}  Nxa4 {[%clk 0:01:32]} 24. e6 {[%clk 0:00:37]}  fxe6 {[%clk 0:01:25]} 25. Qxa4 {[%clk 0:00:17]}  e5 {[%clk 0:01:24]} 26. Qc4+ {[%clk 0:00:16]}  Kh8 {[%clk 0:01:23]} 27. Re1 {[%clk 0:00:08]}  exd4 {[%clk 0:01:22]} 28. Bxd4 {[%clk 0:00:09]}  Rxd4 {[%clk 0:01:18]} 29. Qf7 {[%clk 0:00:02]}  Rd1 {[%clk 0:01:16]} 0-1


[Site "https://www.chess.com"]

[Event "Titled Tuesday Blitz July 4 Early 2023"]
[White "Amilal Munkhdalai"]
[Black "Jimenez Jimenez, Leandro"]
[WhiteFideId "4903250"]
[BlackFideId "6415253"]
[WhiteElo "2701"]
[BlackElo "2415"]
[Result "0-1"]
[Round "1"]
[TimeControl "180+2"]
[Date "2023.07.04"]
[WhiteClock "0:00:14"]
[BlackClock "0:00:12"]
[Board "99"]

1. e4 {[%clk 0:03:00]}  e5 {[%clk 0:03:00]} 2. Nf3 {[%clk 0:03:00]}  Nc6 {[%clk 0:03:00]} 3. Bb5 {[%clk 0:03:01]}  a6 {[%clk 0:03:00]} 4. Ba4 {[%clk 0:03:01]}  Nf6 {[%clk 0:03:00]} 5. d3 {[%clk 0:03:02]}  b5 {[%clk 0:03:00]} 6. Bb3 {[%clk 0:03:02]}  Bc5 {[%clk 0:02:52]} 7. O-O {[%clk 0:03:01]}  O-O {[%clk 0:02:51]} 8. c3 {[%clk 0:03:02]}  d6 {[%clk 0:02:48]} 9. h3 {[%clk 0:02:57]}  Bb6 {[%clk 0:02:43]} 10. Re1 {[%clk 0:02:56]}  Bb7 {[%clk 0:02:43]} 11. Nbd2 {[%clk 0:02:55]}  Na5 {[%clk 0:02:43]} 12. Bc2 {[%clk 0:02:55]}  c5 {[%clk 0:02:43]} 13. Nf1 {[%clk 0:02:55]}  c4 {[%clk 0:02:41]} 14. d4 {[%clk 0:02:54]}  exd4 {[%clk 0:02:41]} 15. Nxd4 {[%clk 0:02:52]}  Re8 {[%clk 0:02:39]} 16. Ng3 {[%clk 0:02:50]}  Nc6 {[%clk 0:02:32]} 17. Be3 {[%clk 0:02:40]}  Nxd4 {[%clk 0:02:14]} 18. Bxd4 {[%clk 0:02:39]}  d5 {[%clk 0:02:11]} 19. e5 {[%clk 0:02:37]}  Ne4 {[%clk 0:02:11]} 20. Nxe4 {[%clk 0:02:28]}  dxe4 {[%clk 0:02:11]} 21. Bxe4 {[%clk 0:02:28]}  Bxe4 {[%clk 0:02:11]} 22. Rxe4 {[%clk 0:02:27]}  Qd5 {[%clk 0:02:05]} 23. Qe2 {[%clk 0:02:10]}  Bxd4 {[%clk 0:01:59]} 24. cxd4 {[%clk 0:02:10]}  Rac8 {[%clk 0:01:59]} 25. Rg4 {[%clk 0:02:05]}  b4 {[%clk 0:01:53]} 26. Qe3 {[%clk 0:01:58]}  Rc6 {[%clk 0:01:48]} 27. Rc1 {[%clk 0:01:54]}  Rec8 {[%clk 0:01:43]} 28. Qg3 {[%clk 0:01:43]}  Rg6 {[%clk 0:01:41]} 29. Rxg6 {[%clk 0:01:42]}  hxg6 {[%clk 0:01:41]} 30. Qe3 {[%clk 0:01:39]}  a5 {[%clk 0:01:40]} 31. f3 {[%clk 0:01:37]}  a4 {[%clk 0:01:38]} 32. a3 {[%clk 0:01:37]}  bxa3 {[%clk 0:00:47]} 33. bxa3 {[%clk 0:01:36]}  Rd8 {[%clk 0:00:38]} 34. Rd1 {[%clk 0:01:36]}  Rb8 {[%clk 0:00:38]} 35. Qe4 {[%clk 0:01:05]}  Qb5 {[%clk 0:00:27]} 36. d5 {[%clk 0:00:59]}  c3 {[%clk 0:00:28]} 37. Kh2 {[%clk 0:00:40]}  Qb3 {[%clk 0:00:21]} 38. Rd3 {[%clk 0:00:37]}  c2 {[%clk 0:00:18]} 39. Rxb3 {[%clk 0:00:24]}  axb3 {[%clk 0:00:18]} 40. e6 {[%clk 0:00:20]}  c1=Q {[%clk 0:00:15]} 41. exf7+ {[%clk 0:00:20]}  Kxf7 {[%clk 0:00:16]} 42. Qe6+ {[%clk 0:00:20]}  Kf8 {[%clk 0:00:15]} 43. Qd6+ {[%clk 0:00:21]}  Kf7 {[%clk 0:00:16]} 44. Qe6+ {[%clk 0:00:19]}  Kf8 {[%clk 0:00:16]} 45. Qd6+ {[%clk 0:00:20]}  Kf7 {[%clk 0:00:16]} 46. Qxb8 {[%clk 0:00:19]}  b2 {[%clk 0:00:16]} 47. Qb7+ {[%clk 0:00:18]}  Kg8 {[%clk 0:00:15]} 48. d6 {[%clk 0:00:14]}  b1=Q {[%clk 0:00:15]} 49. Qd5+ {[%clk 0:00:15]}  Kh7 {[%clk 0:00:15]} 50. d7 {[%clk 0:00:15]}  Qf4+ {[%clk 0:00:15]} 51. g3 {[%clk 0:00:16]}  Qc2+ {[%clk 0:00:13]} 52. Kh1 {[%clk 0:00:14]}  Qfc1+ {[%clk 0:00:12]} 0-1


[Site "https://www.chess.com"]

[Event "Titled Tuesday Blitz July 4 Early 2023"]
[White "PresidentLoek"]
[Black "Suyarov, Mukhammadzokhid"]
[BlackFideId "14210495"]
[WhiteElo "2414"]
[BlackElo "2701"]
[Result "0-1"]
[Round "1"]
[TimeControl "180+2"]
[Date "2023.07.04"]
[WhiteClock "0:00:52"]
[BlackClock "0:02:27"]
[Board "100"]

1. g3 {[%clk 0:03:00]}  e5 {[%clk 0:02:56]} 2. Bg2 {[%clk 0:02:59]}  d5 {[%clk 0:02:56]} 3. d3 {[%clk 0:02:59]}  Nc6 {[%clk 0:02:55]} 4. e4 {[%clk 0:02:55]}  dxe4 {[%clk 0:02:55]} 5. Bxe4 {[%clk 0:02:55]}  Nf6 {[%clk 0:02:55]} 6. Bxc6+ {[%clk 0:02:51]}  bxc6 {[%clk 0:02:56]} 7. Nc3 {[%clk 0:02:52]}  Bd6 {[%clk 0:02:56]} 8. Be3 {[%clk 0:02:51]}  O-O {[%clk 0:02:56]} 9. Qd2 {[%clk 0:02:51]}  Rb8 {[%clk 0:02:56]} 10. O-O-O {[%clk 0:02:48]}  Nd5 {[%clk 0:02:57]} 11. Nge2 {[%clk 0:02:41]}  Be6 {[%clk 0:02:53]} 12. f4 {[%clk 0:02:32]}  Qe7 {[%clk 0:02:51]} 13. Rhf1 {[%clk 0:02:24]}  Ba3 {[%clk 0:02:50]} 14. Na4 {[%clk 0:02:13]}  Rxb2 {[%clk 0:02:31]} 15. Nxb2 {[%clk 0:02:04]}  Rb8 {[%clk 0:02:30]} 16. Nc3 {[%clk 0:00:52]}  Bxb2+ {[%clk 0:02:27]} 0-1


[Site "https://www.chess.com"]

[Event "Titled Tuesday Blitz July 4 Early 2023"]
[White "Khumalo, Keith"]
[Black "Avazkhonov, Alikhon"]
[WhiteFideId "14319470"]
[BlackFideId "14208504"]
[WhiteElo "2700"]
[BlackElo "2413"]
[Result "1/2-1/2"]
[Round "1"]
[TimeControl "180+2"]
[Date "2023.07.04"]
[WhiteClock "0:01:31"]
[BlackClock "0:00:09"]
[Board "101"]

1. d4 {[%clk 0:02:58]}  Nf6 {[%clk 0:02:59]} 2. c4 {[%clk 0:02:57]}  g6 {[%clk 0:02:58]} 3. Nc3 {[%clk 0:02:57]}  d5 {[%clk 0:02:58]} 4. Bg5 {[%clk 0:02:57]}  Bg7 {[%clk 0:02:58]} 5. Bxf6 {[%clk 0:02:57]}  Bxf6 {[%clk 0:02:59]} 6. cxd5 {[%clk 0:02:58]}  O-O {[%clk 0:02:58]} 7. Nf3 {[%clk 0:02:58]}  c6 {[%clk 0:02:51]} 8. dxc6 {[%clk 0:02:58]}  Nxc6 {[%clk 0:02:52]} 9. e3 {[%clk 0:02:58]}  e5 {[%clk 0:02:50]} 10. d5 {[%clk 0:02:58]}  Ne7 {[%clk 0:02:50]} 11. e4 {[%clk 0:02:58]}  Bg4 {[%clk 0:02:49]} 12. Be2 {[%clk 0:02:58]}  Bg7 {[%clk 0:02:49]} 13. Qb3 {[%clk 0:02:57]}  Nc8 {[%clk 0:02:41]} 14. O-O {[%clk 0:02:45]}  Nd6 {[%clk 0:02:40]} 15. h3 {[%clk 0:02:36]}  Bd7 {[%clk 0:02:38]} 16. Qa3 {[%clk 0:02:29]}  Qb6 {[%clk 0:02:31]} 17. Rac1 {[%clk 0:02:20]}  f5 {[%clk 0:02:29]} 18. Ng5 {[%clk 0:02:21]}  Bh6 {[%clk 0:02:02]} 19. Ne6 {[%clk 0:02:16]}  Bxe6 {[%clk 0:02:01]} 20. dxe6 {[%clk 0:02:15]}  Bxc1 {[%clk 0:02:01]} 21. e7 {[%clk 0:02:14]}  Rfe8 {[%clk 0:01:58]} 22. Rxc1 {[%clk 0:02:14]}  Rac8 {[%clk 0:01:42]} 23. Rd1 {[%clk 0:02:08]}  Rxc3 {[%clk 0:01:32]} 24. bxc3 {[%clk 0:02:04]}  Nxe4 {[%clk 0:01:22]} 25. Bc4+ {[%clk 0:02:04]}  Kg7 {[%clk 0:01:19]} 26. Rd8 {[%clk 0:01:43]}  Rxd8 {[%clk 0:00:35]} 27. exd8=Q {[%clk 0:01:44]}  Qxd8 {[%clk 0:00:36]} 28. Qxa7 {[%clk 0:01:43]}  Qc7 {[%clk 0:00:36]} 29. Bd5 {[%clk 0:01:41]}  Nxc3 {[%clk 0:00:36]} 30. Bxb7 {[%clk 0:01:42]}  Nxa2 {[%clk 0:00:35]} 31. Qxa2 {[%clk 0:01:38]}  Qxb7 {[%clk 0:00:35]} 32. Qe6 {[%clk 0:01:39]}  Qb1+ {[%clk 0:00:27]} 33. Kh2 {[%clk 0:01:39]}  Qe4 {[%clk 0:00:28]} 34. Qe7+ {[%clk 0:01:36]}  Kh6 {[%clk 0:00:28]} 35. g3 {[%clk 0:01:36]}  Qd4 {[%clk 0:00:09]} 36. Qf8+ {[%clk 0:01:34]}  Kg5 {[%clk 0:00:10]} 37. Qe7+ {[%clk 0:01:32]}  Kh6 {[%clk 0:00:09]} 38. Kg2 {[%clk 0:01:33]}  Qe4+ {[%clk 0:00:09]} 39. Kh2 {[%clk 0:01:31]}  Qd4 {[%clk 0:00:09]} 1/2-1/2


[Site "https://www.chess.com"]

[Event "Titled Tuesday Blitz July 4 Early 2023"]
[White "Bueno, Alfeu Junior Varela"]
[Black "Lavrik, Dmitry"]
[WhiteFideId "2108879"]
[BlackFideId "24113190"]
[WhiteElo "2412"]
[BlackElo "2700"]
[Result "1-0"]
[Round "1"]
[TimeControl "180+2"]
[Date "2023.07.04"]
[WhiteClock "0:01:10"]
[BlackClock "0:01:00"]
[Board "102"]

1. e4 {[%clk 0:03:00]}  c5 {[%clk 0:02:59]} 2. Nc3 {[%clk 0:02:59]}  e6 {[%clk 0:02:57]} 3. f4 {[%clk 0:03:00]}  d5 {[%clk 0:02:52]} 4. e5 {[%clk 0:02:55]}  f6 {[%clk 0:02:47]} 5. Nf3 {[%clk 0:02:45]}  Bd7 {[%clk 0:02:38]} 6. Nh4 {[%clk 0:02:33]}  fxe5 {[%clk 0:01:49]} 7. Qh5+ {[%clk 0:02:32]}  g6 {[%clk 0:01:49]} 8. Nxg6 {[%clk 0:02:30]}  Nf6 {[%clk 0:01:50]} 9. Qh4 {[%clk 0:02:14]}  hxg6 {[%clk 0:01:50]} 10. Qxh8 {[%clk 0:02:14]}  Nc6 {[%clk 0:01:33]} 11. fxe5 {[%clk 0:01:56]}  Nxe5 {[%clk 0:01:34]} 12. Bb5 {[%clk 0:01:35]}  d4 {[%clk 0:01:20]} 13. O-O {[%clk 0:01:19]}  dxc3 {[%clk 0:01:07]} 14. Rxf6 {[%clk 0:01:16]}  Nf7 {[%clk 0:01:07]} 15. Rxe6+ {[%clk 0:01:16]}  Qe7 {[%clk 0:01:04]} 16. Bxd7+ {[%clk 0:01:14]}  Kd8 {[%clk 0:01:00]} 17. Rxe7 {[%clk 0:01:10]} 1-0


[Site "https://www.chess.com"]

[Event "Titled Tuesday Blitz July 4 Early 2023"]
[White "Koshulyan, Egor A."]
[Black "Tinmaz, Kerem"]
[WhiteFideId "24237000"]
[BlackFideId "44559151"]
[WhiteElo "2695"]
[BlackElo "2408"]
[Result "1-0"]
[Round "1"]
[TimeControl "180+2"]
[Date "2023.07.04"]
[WhiteClock "0:00:51"]
[BlackClock "0:00:00"]
[Board "105"]

1. e4 {[%clk 0:03:00]}  c6 {[%clk 0:02:59]} 2. Nf3 {[%clk 0:02:50]}  d5 {[%clk 0:02:59]} 3. d3 {[%clk 0:02:51]}  g6 {[%clk 0:02:57]} 4. Nbd2 {[%clk 0:02:44]}  Bg7 {[%clk 0:02:55]} 5. g3 {[%clk 0:02:45]}  Bg4 {[%clk 0:02:54]} 6. h3 {[%clk 0:02:44]}  Bxf3 {[%clk 0:02:54]} 7. Qxf3 {[%clk 0:02:45]}  e6 {[%clk 0:02:54]} 8. Bg2 {[%clk 0:02:46]}  Nd7 {[%clk 0:02:50]} 9. O-O {[%clk 0:02:46]}  Ngf6 {[%clk 0:02:34]} 10. Qe2 {[%clk 0:02:45]}  Qc7 {[%clk 0:02:32]} 11. f4 {[%clk 0:02:34]}  O-O {[%clk 0:02:16]} 12. e5 {[%clk 0:02:22]}  Ne8 {[%clk 0:02:15]} 13. Nf3 {[%clk 0:02:22]}  c5 {[%clk 0:02:08]} 14. g4 {[%clk 0:02:22]}  Rc8 {[%clk 0:01:45]} 15. h4 {[%clk 0:02:14]}  c4 {[%clk 0:01:28]} 16. d4 {[%clk 0:02:12]}  c3 {[%clk 0:01:21]} 17. b3 {[%clk 0:02:12]}  Qb6 {[%clk 0:01:19]} 18. Ba3 {[%clk 0:01:46]}  Nc7 {[%clk 0:01:06]} 19. Bxf8 {[%clk 0:01:44]}  Bxf8 {[%clk 0:00:55]} 20. f5 {[%clk 0:01:41]}  Nb5 {[%clk 0:00:52]} 21. Rad1 {[%clk 0:01:40]}  Nb8 {[%clk 0:00:37]} 22. a4 {[%clk 0:01:36]}  Nxd4 {[%clk 0:00:35]} 23. Nxd4 {[%clk 0:01:31]}  Bc5 {[%clk 0:00:36]} 24. Rf4 {[%clk 0:01:13]}  Nc6 {[%clk 0:00:36]} 25. Qe3 {[%clk 0:00:55]}  Re8 {[%clk 0:00:05]} 26. f6 {[%clk 0:00:53]}  Rc8 {[%clk 0:00:04]} 27. Kh1 {[%clk 0:00:53]}  Nxd4 {[%clk 0:00:04]} 28. Rfxd4 {[%clk 0:00:52]}  Bxd4 {[%clk 0:00:00]} 29. Qh6 {[%clk 0:00:51]} 1-0


[Site "https://www.chess.com"]

[Event "Titled Tuesday Blitz July 4 Early 2023"]
[White "Matamoros Franco, Carlos S."]
[Black "Grossboss19"]
[WhiteFideId "3600017"]
[WhiteElo "2688"]
[BlackElo "2403"]
[Result "0-1"]
[Round "1"]
[TimeControl "180+2"]
[Date "2023.07.04"]
[WhiteClock "0:00:00"]
[BlackClock "0:00:07"]
[Board "109"]

1. c4 {[%clk 0:02:59]}  c5 {[%clk 0:02:55]} 2. g3 {[%clk 0:02:52]}  Nf6 {[%clk 0:02:53]} 3. Bg2 {[%clk 0:02:52]}  g6 {[%clk 0:02:54]} 4. Nc3 {[%clk 0:02:50]}  Nc6 {[%clk 0:02:53]} 5. Nf3 {[%clk 0:02:49]}  Bg7 {[%clk 0:02:52]} 6. d4 {[%clk 0:02:47]}  cxd4 {[%clk 0:02:52]} 7. Nxd4 {[%clk 0:02:47]}  O-O {[%clk 0:02:52]} 8. O-O {[%clk 0:02:47]}  a6 {[%clk 0:02:41]} 9. c5 {[%clk 0:02:43]}  Qc7 {[%clk 0:02:37]} 10. Nb3 {[%clk 0:02:13]}  Rd8 {[%clk 0:02:33]} 11. Bf4 {[%clk 0:02:11]}  d6 {[%clk 0:02:16]} 12. cxd6 {[%clk 0:02:11]}  exd6 {[%clk 0:02:17]} 13. Bg5 {[%clk 0:02:02]}  Be6 {[%clk 0:02:15]} 14. Rc1 {[%clk 0:01:52]}  h6 {[%clk 0:02:09]} 15. Bf4 {[%clk 0:01:39]}  g5 {[%clk 0:02:08]} 16. Be3 {[%clk 0:01:37]}  Ng4 {[%clk 0:02:02]} 17. Bd2 {[%clk 0:01:32]}  d5 {[%clk 0:01:56]} 18. Nc5 {[%clk 0:01:22]}  Qe7 {[%clk 0:01:34]} 19. Nxe6 {[%clk 0:01:22]}  fxe6 {[%clk 0:01:35]} 20. e4 {[%clk 0:01:18]}  Nf6 {[%clk 0:01:34]} 21. exd5 {[%clk 0:01:18]}  exd5 {[%clk 0:01:33]} 22. Re1 {[%clk 0:01:15]}  Qf7 {[%clk 0:01:30]} 23. Qb3 {[%clk 0:01:07]}  d4 {[%clk 0:01:24]} 24. Qxf7+ {[%clk 0:01:04]}  Kxf7 {[%clk 0:01:25]} 25. Na4 {[%clk 0:01:00]}  Rd6 {[%clk 0:01:19]} 26. Nc5 {[%clk 0:00:57]}  Rb8 {[%clk 0:01:17]} 27. h4 {[%clk 0:00:53]}  Kg6 {[%clk 0:01:06]} 28. b3 {[%clk 0:00:47]}  Nd8 {[%clk 0:00:50]} 29. hxg5 {[%clk 0:00:46]}  hxg5 {[%clk 0:00:51]} 30. Nd3 {[%clk 0:00:43]}  Nf7 {[%clk 0:00:47]} 31. Rc7 {[%clk 0:00:39]}  Rd7 {[%clk 0:00:42]} 32. Be4+ {[%clk 0:00:26]}  Kh6 {[%clk 0:00:20]} 33. Rxd7 {[%clk 0:00:25]}  Nxd7 {[%clk 0:00:20]} 34. Kg2 {[%clk 0:00:26]}  Bf6 {[%clk 0:00:19]} 35. f4 {[%clk 0:00:24]}  Re8 {[%clk 0:00:17]} 36. Kf3 {[%clk 0:00:21]}  b6 {[%clk 0:00:15]} 37. Rh1+ {[%clk 0:00:20]}  Kg7 {[%clk 0:00:15]} 38. Bf5 {[%clk 0:00:16]}  Nc5 {[%clk 0:00:14]} 39. Rc1 {[%clk 0:00:13]}  Nd6 {[%clk 0:00:12]} 40. Nxc5 {[%clk 0:00:12]}  Nxf5 {[%clk 0:00:10]} 41. Nd3 {[%clk 0:00:12]}  gxf4 {[%clk 0:00:10]} 42. gxf4 {[%clk 0:00:12]}  Re6 {[%clk 0:00:07]} 43. Rc7+ {[%clk 0:00:11]}  Kg6 {[%clk 0:00:07]} 44. Rc1 {[%clk 0:00:11]}  a5 {[%clk 0:00:07]} 45. a4 {[%clk 0:00:10]}  Ne7 {[%clk 0:00:06]} 46. Rg1+ {[%clk 0:00:11]}  Kf5 {[%clk 0:00:06]} 47. Rh1 {[%clk 0:00:11]}  Kg6 {[%clk 0:00:05]} 48. Kg4 {[%clk 0:00:10]}  Kf7 {[%clk 0:00:02]} 49. Kf3 {[%clk 0:00:10]}  Rc6 {[%clk 0:00:02]} 50. Rc1 {[%clk 0:00:09]}  Rxc1 {[%clk 0:00:02]} 51. Bxc1 {[%clk 0:00:09]}  Ke6 {[%clk 0:00:02]} 52. Bd2 {[%clk 0:00:10]}  Kf5 {[%clk 0:00:02]} 53. Ne1 {[%clk 0:00:09]}  Ng6 {[%clk 0:00:03]} 54. Nd3 {[%clk 0:00:08]}  Nh4+ {[%clk 0:00:03]} 55. Kg3 {[%clk 0:00:07]}  Ke4 {[%clk 0:00:03]} 56. Nb2 {[%clk 0:00:07]}  Nf5+ {[%clk 0:00:03]} 57. Kg4 {[%clk 0:00:07]}  Ne3+ {[%clk 0:00:03]} 58. Kh5 {[%clk 0:00:07]}  Kxf4 {[%clk 0:00:03]} 59. Kg6 {[%clk 0:00:07]}  Bd8 {[%clk 0:00:02]} 60. Nc4 {[%clk 0:00:07]}  Ke4 {[%clk 0:00:02]} 61. Nb2 {[%clk 0:00:06]}  Nd5 {[%clk 0:00:01]} 62. Kf7 {[%clk 0:00:06]}  Bc7 {[%clk 0:00:02]} 63. Ke8 {[%clk 0:00:06]}  Bf4 {[%clk 0:00:03]} 64. Be1 {[%clk 0:00:05]}  d3 {[%clk 0:00:02]} 65. Kd7 {[%clk 0:00:05]}  d2 {[%clk 0:00:03]} 66. Bxd2 {[%clk 0:00:05]}  Bxd2 {[%clk 0:00:04]} 67. Nc4 {[%clk 0:00:05]}  Be3 {[%clk 0:00:04]} 68. Kc6 {[%clk 0:00:05]}  Bc5 {[%clk 0:00:04]} 69. Kb5 {[%clk 0:00:06]}  Kd4 {[%clk 0:00:05]} 70. Nd2 {[%clk 0:00:05]}  Ne3 {[%clk 0:00:04]} 71. Nb1 {[%clk 0:00:04]}  Nd5 {[%clk 0:00:03]} 72. Na3 {[%clk 0:00:04]}  Nc3+ {[%clk 0:00:03]} 73. Kc6 {[%clk 0:00:03]}  Ne4 {[%clk 0:00:04]} 74. Nc4 {[%clk 0:00:03]}  Kc3 {[%clk 0:00:04]} 75. Nxb6 {[%clk 0:00:03]}  Kxb3 {[%clk 0:00:04]} 76. Kd5 {[%clk 0:00:02]}  Bxb6 {[%clk 0:00:05]} 77. Kxe4 {[%clk 0:00:02]}  Kxa4 {[%clk 0:00:05]} 78. Kd3 {[%clk 0:00:03]}  Kb3 {[%clk 0:00:06]} 79. Kd2 {[%clk 0:00:03]}  Kb2 {[%clk 0:00:06]} 80. Kd3 {[%clk 0:00:00]}  a4 {[%clk 0:00:07]} 0-1


[Site "https://www.chess.com"]